[Event "GER-ch Rapid Women 2020"]
[Site "Plochingen"]
[Date "2020.09.19"]
[Round "1.2"]
[White "Papp, Sarah"]
[Black "Zeller, Elisa"]
[Result "1-0"]
[ECO "C02"]
[WhiteElo "2327"]
[BlackElo "1969"]
[Annotator "ChessBase"]
[PlyCount "167"]
[EventDate "2020.09.19"]
[EventType "swiss"]
[EventCountry "GER"]
[SourceTitle "playchess.com"]
[Source "ChessBase"]
[SourceQuality "1"]
[TimeControl "900+10"]

1. e4 {[%emt 0:00:00]} e6 {[%emt 0:00:00]} 2. d4 {[%emt 0:00:00]} d5 {[%emt 0:00:00]} 3. e5 {[%emt 0:00:06]} c5 {[%emt 0:00:00]} 4. c3 {[%emt 0:00:03]} Nc6 {[%emt 0:00:00]} 5. Nf3 {[%emt 0:00:02]} Qb6 {[%emt 0:00:01]} 6. a3 {[%emt 0:00:05]} Bd7 {[%emt 0:00:10]} 7. b4 {[%emt 0:01:32]} cxd4 {[%emt 0:00:43]} 8. cxd4 {[%emt 0:00:01]} Nge7 {[%emt 0:00:06]} 9. Nc3 {[%emt 0:00:18]} a6 {[%emt 0:00:37]} 10. Na4 {[%emt 0:00:28]} Qc7 {[%emt 0:00:04]} 11. Bb2 {[%emt 0:01:27]} Ng6 {[%emt 0:00:36]} 12. h4 {[%emt 0:00:39]} b5 {[%emt 0:01:28]} 13. Nc5 {[%emt 0:00:08]} Bxc5 {[%emt 0:00:02]} 14. bxc5 {[%emt 0:00:43]} Qa5+ {[%emt 0:00:13]} 15. Nd2 {[%emt 0:00:31]} Nge7 {[%emt 0:01:12]} 16. Rh3 {[%emt 0:02:01]} Nf5 {[%emt 0:02:45]} 17. Bc3 {[%emt 0:00:05]} Qd8 {[%emt 0:00:15]} 18. Nf3 {[%emt 0:00:30]} Rb8 {[%emt 0:00:34]} 19. g4 {[%emt 0:00:27]} Nfe7 {[%emt 0:00:12]} 20. Qd2 {[%emt 0:00:38]} h6 {[%emt 0:01:07]} 21. h5 {[%emt 0:00:51]} Rg8 {[%emt 0:02:19]} 22. Bd3 {[%emt 0:00:06]} Qc7 {[%emt 0:00:57]} 23. Nh4 {[%emt 0:00:14]} Kd8 {[%emt 0:01:13]} 24. Rf3 {[%emt 0:00:54]} Be8 {[%emt 0:00:10]} 25. Rb1 {[%emt 0:00:21]} Nc8 {[%emt 0:00:53]} 26. Ng2 {[%emt 0:00:47]} N8a7 {[%emt 0:00:30]} 27. g5 {[%emt 0:00:18]} hxg5 {[%emt 0:00:07]} 28. Qxg5+ {[%emt 0:00:02]} Qe7 {[%emt 0:00:04]} 29. Qg4 {[%emt 0:00:27]} Qf8 {[%emt 0:00:59]} 30. Bd2 {[%emt 0:00:50]} Kc8 {[%emt 0:00:36]} 31. a4 {[%emt 0:00:59]} Bd7 {[%emt 0:00:14]} 32. Qf4 {[%emt 0:01:02]} f5 {[%emt 0:00:26]} 33. Nh4 {[%emt 0:00:45]} Be8 {[%emt 0:00:39]} 34. Nxf5 {[%emt 0:00:54]} exf5 {[%emt 0:00:03]} 35. Bxf5+ {[%emt 0:00:02]} Kb7 {[%emt 0:00:15]} 36. Qg4 {[%emt 0:01:17]} Qe7 {[%emt 0:00:37]} 37. Bg5 {[%emt 0:00:13]} Qc7 {[%emt 0:00:05]} 38. Be6 {[%emt 0:00:07]} Rh8 {[%emt 0:00:16]} 39. h6 {[%emt 0:00:09]} gxh6 {[%emt 0:00:15]} 40. Bf6 {[%emt 0:00:02]} h5 {[%emt 0:00:04]} 41. Qh4 {[%emt 0:00:25]} Qh7 {[%emt 0:00:05]} 42. Rb2 {[%emt 0:00:32]} Qe4+ {[%emt 0:00:14]} 43. Qxe4 {[%emt 0:00:04]} dxe4 {[%emt 0:00:01]} 44. Rf4 {[%emt 0:00:25]} Rf8 {[%emt 0:00:25]} 45. Rxe4 {[%emt 0:00:04]} Bg6 {[%emt 0:00:04]} 46. Rh4 {[%emt 0:00:11]} Na5 {[%emt 0:00:44]} 47. d5 {[%emt 0:00:09]} Rfe8 {[%emt 0:00:13]} 48. Bd7 {[%emt 0:00:09]} Bf7 {[%emt 0:00:08]} 49. c6+ {[%emt 0:00:08]} N7xc6 {[%emt 0:00:08]} 50. dxc6+ {[%emt 0:00:02]} Kc7 {[%emt 0:00:02]} 51. Bxe8 {[%emt 0:00:13]} Rxe8 {[%emt 0:00:03]} 52. axb5 {[%emt 0:00:03]} axb5 {[%emt 0:00:02]} 53. Rxb5 {[%emt 0:00:02]} Nxc6 {[%emt 0:00:02]} 54. Ra4 {[%emt 0:00:14]} Rb8 {[%emt 0:00:29]} 55. Rxb8 {[%emt 0:00:02]} Kxb8 {[%emt 0:00:02]} 56. f4 {[%emt 0:00:07]} Be6 {[%emt 0:00:07]} 57. Kf2 {[%emt 0:00:26]} Kc7 {[%emt 0:00:02]} 58. Ra1 {[%emt 0:00:07]} Kd7 {[%emt 0:00:03]} 59. Rg1 {[%emt 0:00:05]} Bg4 {[%emt 0:00:09]} 60. Ke3 {[%emt 0:00:09]} Ke6 {[%emt 0:00:03]} 61. Bg5 {[%emt 0:00:15]} Nb4 {[%emt 0:00:03]} 62. Rc1 {[%emt 0:00:39]} Kf5 {[%emt 0:00:19]} 63. Kd4 {[%emt 0:00:05]} Bf3 {[%emt 0:00:16]} 64. Rc8 {[%emt 0:00:26]} h4 {[%emt 0:00:20]} 65. Bxh4 {[%emt 0:00:07]} Kxf4 {[%emt 0:00:05]} 66. Rf8+ {[%emt 0:00:04]} Kg4 {[%emt 0:00:05]} 67. Bf6 {[%emt 0:00:22]} Nc6+ {[%emt 0:00:16]} 68. Kc5 {[%emt 0:00:03]} Na5 {[%emt 0:00:34]} 69. e6 {[%emt 0:00:07]} Nb7+ {[%emt 0:00:06]} 70. Kd4 {[%emt 0:00:05]} Nd6 {[%emt 0:00:04]} 71. e7 {[%emt 0:00:06]} Nf5+ {[%emt 0:00:04]} 72. Ke5 {[%emt 0:00:05]} Nxe7 {[%emt 0:00:02]} 73. Bxe7 {[%emt 0:00:02]} Bc6 {[%emt 0:00:06]} 74. Bc5 {[%emt 0:00:05]} Bd7 {[%emt 0:00:07]} 75. Be3 {[%emt 0:00:06]} Kg3 {[%emt 0:00:04]} 76. Rf6 {[%emt 0:00:08]} Bg4 {[%emt 0:00:03]} 77. Ke4 {[%emt 0:00:09]} Bh5 {[%emt 0:00:07]} 78. Bd4 {[%emt 0:00:18]} Be2 {[%emt 0:00:11]} 79. Rg6+ {[%emt 0:00:06]} Kh3 {[%emt 0:00:10]} 80. Ke3 {[%emt 0:00:11]} Bh5 {[%emt 0:00:12]} 81. Rg7 {[%emt 0:00:17]} Bd1 {[%emt 0:00:03]} 82. Kf4 {[%emt 0:00:08]} Bc2 {[%emt 0:00:10]} 83. Rg3+ {[%emt 0:00:15]} Kh4 {[%emt 0:00:05]} 84. Rg2 {[%emt 0:00:04]} 1-0

[Event "GER-ch Rapid Women 2020"]
[Site "Plochingen"]
[Date "2020.09.19"]
[Round "1.3"]
[White "Kosovska, Olena"]
[Black "Voicu-Jagodzinsky, Carmen"]
[Result "1/2-1/2"]
[ECO "B23"]
[WhiteElo "1881"]
[BlackElo "2247"]
[Annotator "ChessBase"]
[PlyCount "105"]
[EventDate "2020.09.19"]
[EventType "swiss"]
[EventCountry "GER"]
[SourceTitle "playchess.com"]
[Source "ChessBase"]
[SourceQuality "1"]
[TimeControl "900+10"]

1. e4 {[%emt 0:00:00]} c5 {[%emt 0:00:00]} 2. Nc3 {[%emt 0:00:00]} Nc6 {[%emt 0:00:00]} 3. f4 {[%emt 0:00:00]} a6 {[%emt 0:00:19]} 4. Nf3 {[%emt 0:00:02]} e6 {[%emt 0:00:10]} 5. Be2 {[%emt 0:00:05]} b5 {[%emt 0:00:43]} 6. O-O {[%emt 0:00:17]} b4 {[%emt 0:00:40]} 7. Na4 {[%emt 0:01:37]} Be7 {[%emt 0:01:48]} 8. d3 {[%emt 0:00:34]} Nf6 {[%emt 0:01:00]} 9. e5 {[%emt 0:01:31]} Nd5 {[%emt 0:00:09]} 10. c4 {[%emt 0:00:12]} bxc3 {[%emt 0:02:23]} 11. Nxc3 {[%emt 0:00:22]} d6 {[%emt 0:02:56]} 12. Bd2 {[%emt 0:04:38]} dxe5 {[%emt 0:00:28]} 13. fxe5 {[%emt 0:01:32]} O-O {[%emt 0:00:55]} 14. Qe1 {[%emt 0:00:14]} Rb8 {[%emt 0:00:30]} 15. Rb1 {[%emt 0:00:21]} Qc7 {[%emt 0:01:34]} 16. Qg3 {[%emt 0:00:16]} f5 {[%emt 0:00:37]} 17. Bh6 {[%emt 0:02:33]} Bd8 {[%emt 0:00:01]} 18. Nxd5 {[%emt 0:00:54]} exd5 {[%emt 0:00:01]} 19. Bf4 {[%emt 0:00:02]} Be6 {[%emt 0:00:09]} 20. Ng5 {[%emt 0:00:12]} Nd4 {[%emt 0:00:11]} 21. Bh5 {[%emt 0:00:25]} Bxg5 {[%emt 0:00:52]} 22. Bxg5 {[%emt 0:00:39]} Rb7 {[%emt 0:01:13]} 23. Kh1 {[%emt 0:00:09]} Rfb8 {[%emt 0:00:22]} 24. b3 {[%emt 0:00:23]} a5 {[%emt 0:00:01]} 25. Be3 {[%emt 0:00:47]} Rb4 {[%emt 0:01:02]} 26. Rbc1 {[%emt 0:00:08]} Qe7 {[%emt 0:00:19]} 27. Bd2 {[%emt 0:00:35]} R4b5 {[%emt 0:00:01]} 28. Qf2 {[%emt 0:00:07]} a4 {[%emt 0:00:07]} 29. b4 {[%emt 0:00:25]} Rxb4 {[%emt 0:00:22]} 30. Bxb4 {[%emt 0:00:03]} Rxb4 {[%emt 0:00:01]} 31. h3 {[%emt 0:00:08]} g6 {[%emt 0:00:25]} 32. Bd1 {[%emt 0:00:05]} a3 {[%emt 0:00:08]} 33. Qd2 {[%emt 0:00:10]} Kg7 {[%emt 0:00:22]} 34. Qc3 {[%emt 0:00:01]} Rb5 {[%emt 0:00:22]} 35. Ba4 {[%emt 0:00:03]} Rb4 {[%emt 0:00:14]} 36. Bd1 {[%emt 0:00:24]} Rb5 {[%emt 0:00:00]} 37. Re1 {[%emt 0:00:08]} Qa7 {[%emt 0:00:04]} 38. Be2 {[%emt 0:00:58]} h5 {[%emt 0:00:10]} 39. Bf1 {[%emt 0:00:07]} Kh7 {[%emt 0:00:06]} 40. Rb1 {[%emt 0:00:02]} f4 {[%emt 0:00:25]} 41. Rxb5 {[%emt 0:00:22]} Nxb5 {[%emt 0:00:01]} 42. Qd2 {[%emt 0:00:03]} Qa4 {[%emt 0:00:04]} 43. Rb1 {[%emt 0:00:07]} Bd7 {[%emt 0:00:13]} 44. Be2 {[%emt 0:00:09]} Qd4 {[%emt 0:00:02]} 45. e6 {[%emt 0:00:07]} Be8 {[%emt 0:00:04]} 46. Qa5 {[%emt 0:00:05]} Qe3 {[%emt 0:00:16]} 47. Bf3 {[%emt 0:00:14]} Qxe6 {[%emt 0:00:19]} 48. Rxb5 {[%emt 0:00:04]} Bxb5 {[%emt 0:00:06]} 49. Qxb5 {[%emt 0:00:01]} Qe1+ {[%emt 0:00:02]} 50. Kh2 {[%emt 0:00:01]} Qg3+ {[%emt 0:00:01]} 51. Kg1 {[%emt 0:00:04]} Qe1+ {[%emt 0:00:03]} 52. Kh2 {[%emt 0:00:01]} Qg3+ {[%emt 0:00:17]} 53. Kg1 {[%emt 0:00:02]} 1/2-1/2

[Event "GER-ch Rapid Women 2020"]
[Site "Plochingen"]
[Date "2020.09.19"]
[Round "1.4"]
[White "Muetsch, Annmarie"]
[Black "Morio, Estelle"]
[Result "1-0"]
[ECO "C41"]
[WhiteElo "2226"]
[BlackElo "1837"]
[Annotator "ChessBase"]
[PlyCount "77"]
[EventDate "2020.09.19"]
[EventType "swiss"]
[EventCountry "GER"]
[SourceTitle "playchess.com"]
[Source "ChessBase"]
[SourceQuality "1"]
[TimeControl "900+10"]

1. e4 {[%emt 0:00:00]} d6 {[%emt 0:00:00]} 2. d4 {[%emt 0:00:00]} Nf6 {[%emt 0:00:00]} 3. Nc3 {[%emt 0:00:01]} Nbd7 {[%emt 0:00:00]} 4. Nf3 {[%emt 0:00:03]} e5 {[%emt 0:00:00]} 5. Bc4 {[%emt 0:00:04]} Be7 {[%emt 0:00:00]} 6. O-O {[%emt 0:00:04]} O-O {[%emt 0:00:00]} 7. a4 {[%emt 0:00:17]} c6 {[%emt 0:00:05]} 8. h3 {[%emt 0:00:10]} exd4 {[%emt 0:00:17]} 9. Nxd4 {[%emt 0:00:05]} Re8 {[%emt 0:00:07]} 10. Nf5 {[%emt 0:00:18]} Nc5 {[%emt 0:02:01]} 11. Nxe7+ {[%emt 0:01:44]} Rxe7 {[%emt 0:01:59]} 12. e5 {[%emt 0:03:57]} Rxe5 {[%emt 0:01:40]} 13. Bf4 {[%emt 0:00:08]} Re8 {[%emt 0:00:36]} 14. Bxd6 {[%emt 0:02:38]} Nce4 {[%emt 0:02:12]} 15. Nxe4 {[%emt 0:00:34]} Nxe4 {[%emt 0:01:15]} 16. Bf4 {[%emt 0:01:33]} Qxd1 {[%emt 0:01:29]} 17. Raxd1 {[%emt 0:00:37]} Nc5 {[%emt 0:00:54]} 18. b3 {[%emt 0:01:14]} Be6 {[%emt 0:01:46]} 19. Bxe6 {[%emt 0:00:07]} Rxe6 {[%emt 0:00:25]} 20. Be3 {[%emt 0:00:18]} Re5 {[%emt 0:02:06]} 21. Rd6 {[%emt 0:01:01]} Kf8 {[%emt 0:01:01]} 22. Rfd1 {[%emt 0:02:33]} Ne4 {[%emt 0:00:27]} 23. Rd7 {[%emt 0:00:19]} Re7 {[%emt 0:00:01]} 24. f3 {[%emt 0:00:30]} Rxd7 {[%emt 0:00:25]} 25. Rxd7 {[%emt 0:00:07]} Nf6 {[%emt 0:00:10]} 26. Rxb7 {[%emt 0:00:16]} a6 {[%emt 0:00:11]} 27. Bc5+ {[%emt 0:00:10]} Kg8 {[%emt 0:00:11]} 28. Rc7 {[%emt 0:00:10]} h6 {[%emt 0:00:09]} 29. Rxc6 {[%emt 0:00:06]} Rd8 {[%emt 0:00:12]} 30. Rd6 {[%emt 0:00:25]} Rc8 {[%emt 0:00:01]} 31. b4 {[%emt 0:00:04]} a5 {[%emt 0:00:05]} 32. c3 {[%emt 0:00:02]} axb4 {[%emt 0:00:05]} 33. cxb4 {[%emt 0:00:01]} Ra8 {[%emt 0:00:02]} 34. a5 {[%emt 0:00:05]} Ne8 {[%emt 0:00:08]} 35. Rc6 {[%emt 0:00:04]} Nf6 {[%emt 0:00:09]} 36. a6 {[%emt 0:00:05]} Nd5 {[%emt 0:00:09]} 37. a7 {[%emt 0:00:04]} Nc3 {[%emt 0:00:22]} 38. Rc7 {[%emt 0:00:11]} Nb5 {[%emt 0:00:17]} 39. Rb7 {[%emt 0:00:03]} 1-0

[Event "GER-ch Rapid Women 2020"]
[Site "Plochingen"]
[Date "2020.09.19"]
[Round "1.5"]
[White "Wulf, Constanze"]
[Black "Osmanodja, Filiz"]
[Result "0-1"]
[ECO "B23"]
[WhiteElo "1817"]
[BlackElo "2256"]
[Annotator "ChessBase"]
[PlyCount "40"]
[EventDate "2020.09.19"]
[EventType "swiss"]
[EventCountry "GER"]
[SourceTitle "playchess.com"]
[Source "ChessBase"]
[SourceQuality "1"]
[TimeControl "900+10"]

1. e4 {[%emt 0:00:00]} c5 {[%emt 0:00:00]} 2. Nc3 {[%emt 0:00:00]} Nc6 {[%emt 0:00:00]} 3. Bb5 {[%emt 0:00:02]} Nd4 {[%emt 0:00:03]} 4. Bc4 {[%emt 0:00:01]} e6 {[%emt 0:00:03]} 5. Nge2 {[%emt 0:01:05]} a6 {[%emt 0:00:11]} 6. a4 {[%emt 0:00:08]} Ne7 {[%emt 0:01:17]} 7. d3 {[%emt 0:00:58]} d5 {[%emt 0:02:14]} 8. exd5 {[%emt 0:00:02]} exd5 {[%emt 0:00:02]} 9. Ba2 {[%emt 0:00:06]} Bg4 {[%emt 0:00:55]} 10. h3 {[%emt 0:03:00]} Bh5 {[%emt 0:00:22]} 11. Bg5 {[%emt 0:02:44]} h6 {[%emt 0:02:33]} 12. Bh4 {[%emt 0:03:15]} g5 {[%emt 0:01:13]} 13. Bg3 {[%emt 0:00:01]} Bg7 {[%emt 0:00:15]} 14. Qd2 {[%emt 0:00:27]} O-O {[%emt 0:02:45]} 15. O-O {[%emt 0:03:37]} Re8 {[%emt 0:00:59]} 16. Nxd4 {[%emt 0:01:16]} cxd4 {[%emt 0:00:46]} 17. Nd1 {[%emt 0:00:47]} Nf5 {[%emt 0:00:15]} 18. c3 {[%emt 0:00:15]} Re2 {[%emt 0:00:22]} 19. Qc1 {[%emt 0:00:10]} Rc8 {[%emt 0:00:21]} 20. Bh2 {[%emt 0:00:08]} Nh4 {[%emt 0:00:18]} 0-1

[Event "GER-ch Rapid Women 2020"]
[Site "Plochingen"]
[Date "2020.09.19"]
[Round "1.6"]
[White "Burchardt, Brigitte"]
[Black "Mader, Lena"]
[Result "1-0"]
[ECO "B15"]
[WhiteElo "2113"]
[BlackElo "1839"]
[Annotator "ChessBase"]
[PlyCount "117"]
[EventDate "2020.09.19"]
[EventType "swiss"]
[EventCountry "GER"]
[SourceTitle "playchess.com"]
[Source "ChessBase"]
[SourceQuality "1"]
[TimeControl "900+10"]

1. e4 {[%emt 0:00:00]} c6 {[%emt 0:00:00]} 2. d4 {[%emt 0:00:00]} d5 {[%emt 0:00:00]} 3. Nd2 {[%emt 0:00:00]} dxe4 {[%emt 0:00:00]} 4. Nxe4 {[%emt 0:00:00]} Nf6 {[%emt 0:00:00]} 5. Ng3 {[%emt 0:00:00]} g6 {[%emt 0:00:25]} 6. h3 {[%emt 0:00:01]} Bg7 {[%emt 0:00:02]} 7. Nf3 {[%emt 0:00:02]} O-O {[%emt 0:00:12]} 8. Be2 {[%emt 0:00:28]} c5 {[%emt 0:00:47]} 9. dxc5 {[%emt 0:01:03]} Qa5+ {[%emt 0:01:15]} 10. c3 {[%emt 0:00:01]} Qxc5 {[%emt 0:02:01]} 11. O-O {[%emt 0:00:05]} e5 {[%emt 0:01:16]} 12. Qb3 {[%emt 0:02:34]} Nc6 {[%emt 0:01:54]} 13. Be3 {[%emt 0:00:53]} Qe7 {[%emt 0:00:16]} 14. Rfe1 {[%emt 0:00:05]} Be6 {[%emt 0:00:12]} 15. Qc2 {[%emt 0:00:59]} h6 {[%emt 0:01:18]} 16. Bd3 {[%emt 0:02:26]} Rac8 {[%emt 0:01:13]} 17. Qe2 {[%emt 0:00:17]} Nd5 {[%emt 0:01:29]} 18. Bc1 {[%emt 0:02:54]} f5 {[%emt 0:00:16]} 19. Bb5 {[%emt 0:00:18]} e4 {[%emt 0:00:59]} 20. Bxc6 {[%emt 0:00:45]} Rxc6 {[%emt 0:00:09]} 21. Nd4 {[%emt 0:00:09]} Bxd4 {[%emt 0:00:08]} 22. cxd4 {[%emt 0:00:02]} Kh7 {[%emt 0:00:33]} 23. f3 {[%emt 0:01:05]} Rxc1 {[%emt 0:01:11]} 24. Rexc1 {[%emt 0:00:25]} Nf4 {[%emt 0:00:30]} 25. Qe3 {[%emt 0:00:56]} Nd3 {[%emt 0:01:15]} 26. fxe4 {[%emt 0:00:26]} Nxc1 {[%emt 0:00:30]} 27. exf5 {[%emt 0:00:02]} gxf5 {[%emt 0:00:08]} 28. Rxc1 {[%emt 0:00:16]} f4 {[%emt 0:00:38]} 29. Qe4+ {[%emt 0:00:07]} Kh8 {[%emt 0:00:04]} 30. Qe5+ {[%emt 0:00:02]} Qf6 {[%emt 0:00:11]} 31. Qxf6+ {[%emt 0:00:11]} Rxf6 {[%emt 0:00:01]} 32. Nh5 {[%emt 0:00:02]} Rf5 {[%emt 0:00:13]} 33. Re1 {[%emt 0:00:02]} Bf7 {[%emt 0:00:26]} 34. g4 {[%emt 0:00:17]} fxg3 {[%emt 0:00:24]} 35. Nxg3 {[%emt 0:00:02]} Rd5 {[%emt 0:00:11]} 36. Re7 {[%emt 0:00:06]} Kg8 {[%emt 0:00:07]} 37. Rxb7 {[%emt 0:00:06]} Rxd4 {[%emt 0:00:04]} 38. Nf5 {[%emt 0:00:02]} Rd1+ {[%emt 0:00:03]} 39. Kf2 {[%emt 0:00:04]} Rd2+ {[%emt 0:00:08]} 40. Ke3 {[%emt 0:00:01]} Rg2 {[%emt 0:00:07]} 41. Nxh6+ {[%emt 0:00:01]} Kf8 {[%emt 0:00:10]} 42. Nxf7 {[%emt 0:00:02]} Rg3+ {[%emt 0:00:01]} 43. Kd4 {[%emt 0:00:06]} Rxh3 {[%emt 0:00:02]} 44. Ne5 {[%emt 0:00:02]} Rh2 {[%emt 0:00:02]} 45. Nd3 {[%emt 0:00:04]} Rh4+ {[%emt 0:00:02]} 46. Kc3 {[%emt 0:00:01]} a6 {[%emt 0:00:05]} 47. b4 {[%emt 0:00:10]} Rh6 {[%emt 0:00:04]} 48. Nc5 {[%emt 0:00:04]} Rc6 {[%emt 0:00:03]} 49. Kc4 {[%emt 0:00:05]} Ke8 {[%emt 0:00:09]} 50. Ra7 {[%emt 0:00:04]} Kd8 {[%emt 0:00:16]} 51. Rxa6 {[%emt 0:00:06]} Rxa6 {[%emt 0:00:03]} 52. Nxa6 {[%emt 0:00:02]} Kc8 {[%emt 0:00:01]} 53. Kc5 {[%emt 0:00:00]} Kb7 {[%emt 0:00:02]} 54. b5 {[%emt 0:00:02]} Ka7 {[%emt 0:00:01]} 55. Nb4 {[%emt 0:00:01]} Kb7 {[%emt 0:00:01]} 56. b6 {[%emt 0:00:02]} Ka8 {[%emt 0:00:01]} 57. Kc6 {[%emt 0:00:03]} Kb8 {[%emt 0:00:01]} 58. Na6+ {[%emt 0:00:04]} Ka8 {[%emt 0:00:01]} 59. b7+ {[%emt 0:00:00]} 1-0

[Event "GER-ch Rapid Women 2020"]
[Site "Plochingen"]
[Date "2020.09.19"]
[Round "2.2"]
[White "Frey, Alisa"]
[Black "Papp, Sarah"]
[Result "1/2-1/2"]
[ECO "C12"]
[WhiteElo "2087"]
[BlackElo "2327"]
[Annotator "ChessBase"]
[PlyCount "87"]
[EventDate "2020.09.19"]
[EventType "swiss"]
[EventCountry "GER"]
[SourceTitle "playchess.com"]
[Source "ChessBase"]
[SourceQuality "1"]
[TimeControl "900+10"]

1. e4 {[%emt 0:00:00]} e6 {[%emt 0:00:00]} 2. d4 {[%emt 0:00:00]} d5 {[%emt 0:00:00]} 3. Nc3 {[%emt 0:00:00]} Nf6 {[%emt 0:00:00]} 4. Bg5 {[%emt 0:00:01]} Bb4 {[%emt 0:00:03]} 5. e5 {[%emt 0:00:21]} h6 {[%emt 0:00:03]} 6. Bd2 {[%emt 0:00:19]} Bxc3 {[%emt 0:00:10]} 7. bxc3 {[%emt 0:00:02]} Ne4 {[%emt 0:00:12]} 8. Qg4 {[%emt 0:00:15]} Kf8 {[%emt 0:00:09]} 9. Bd3 {[%emt 0:00:04]} Nxd2 {[%emt 0:00:07]} 10. Kxd2 {[%emt 0:00:03]} c5 {[%emt 0:00:06]} 11. Rb1 {[%emt 0:01:22]} Nc6 {[%emt 0:01:07]} 12. Nf3 {[%emt 0:03:05]} c4 {[%emt 0:01:05]} 13. Be2 {[%emt 0:00:12]} Rb8 {[%emt 0:00:04]} 14. Rb2 {[%emt 0:00:51]} Bd7 {[%emt 0:01:04]} 15. Rhb1 {[%emt 0:00:07]} b6 {[%emt 0:00:19]} 16. h4 {[%emt 0:00:21]} Ne7 {[%emt 0:00:58]} 17. h5 {[%emt 0:00:55]} a5 {[%emt 0:02:31]} 18. Qf4 {[%emt 0:01:30]} Kg8 {[%emt 0:04:08]} 19. g4 {[%emt 0:00:56]} Be8 {[%emt 0:01:40]} 20. Rg1 {[%emt 0:00:43]} b5 {[%emt 0:00:14]} 21. Qg3 {[%emt 0:03:38]} b4 {[%emt 0:00:39]} 22. Rgb1 {[%emt 0:00:11]} Nc6 {[%emt 0:01:21]} 23. Ng1 {[%emt 0:01:25]} Rc8 {[%emt 0:01:32]} 24. Nh3 {[%emt 0:00:24]} Qe7 {[%emt 0:00:25]} 25. Ke1 {[%emt 0:00:55]} Rh7 {[%emt 0:00:20]} 26. Kf1 {[%emt 0:00:18]} g6 {[%emt 0:00:26]} 27. hxg6 {[%emt 0:00:27]} fxg6 {[%emt 0:00:01]} 28. Kg2 {[%emt 0:00:15]} g5 {[%emt 0:00:08]} 29. f4 {[%emt 0:00:20]} Bg6 {[%emt 0:00:02]} 30. Rf1 {[%emt 0:00:13]} Be4+ {[%emt 0:00:07]} 31. Kh2 {[%emt 0:00:18]} Rf8 {[%emt 0:00:02]} 32. Bf3 {[%emt 0:00:18]} Bxf3 {[%emt 0:00:43]} 33. Rxf3 {[%emt 0:00:03]} Rhf7 {[%emt 0:00:04]} 34. Rb1 {[%emt 0:00:25]} bxc3 {[%emt 0:00:02]} 35. Qf2 {[%emt 0:00:06]} Qa7 {[%emt 0:00:41]} 36. Rf1 {[%emt 0:00:20]} Qxd4 {[%emt 0:00:00]} 37. Qg3 {[%emt 0:00:12]} Kg7 {[%emt 0:00:03]} 38. fxg5 {[%emt 0:00:07]} Rxf3 {[%emt 0:00:05]} 39. gxh6+ {[%emt 0:00:03]} Kxh6 {[%emt 0:00:06]} 40. Qh4+ {[%emt 0:00:10]} Kg7 {[%emt 0:00:10]} 41. Qg5+ {[%emt 0:00:01]} Kh7 {[%emt 0:00:05]} 42. Qh5+ {[%emt 0:00:02]} Kg7 {[%emt 0:00:02]} 43. Qg5+ {[%emt 0:00:01]} Kh7 {[%emt 0:00:01]} 44. Qh5+ {[%emt 0:00:01]} 1/2-1/2

[Event "GER-ch Rapid Women 2020"]
[Site "Plochingen"]
[Date "2020.09.19"]
[Round "2.3"]
[White "Birkholz, Olga"]
[Black "Muetsch, Annmarie"]
[Result "0-1"]
[ECO "A41"]
[WhiteElo "2018"]
[BlackElo "2226"]
[Annotator "ChessBase"]
[PlyCount "69"]
[EventDate "2020.09.19"]
[EventType "swiss"]
[EventCountry "GER"]
[SourceTitle "playchess.com"]
[Source "ChessBase"]
[SourceQuality "1"]
[TimeControl "900+10"]

1. d4 {[%emt 0:00:00]} d6 {[%emt 0:00:00]} 2. Nc3 {[%emt 0:00:00]} Nf6 {[%emt 0:00:11]} 3. Bf4 {[%emt 0:00:00]} Nbd7 {[%emt 0:00:08]} 4. e3 {[%emt 0:00:00]} e5 {[%emt 0:00:06]} 5. Bg3 {[%emt 0:00:08]} Be7 {[%emt 0:00:23]} 6. Bc4 {[%emt 0:00:18]} O-O {[%emt 0:01:15]} 7. Nf3 {[%emt 0:00:55]} e4 {[%emt 0:01:35]} 8. Nd2 {[%emt 0:02:27]} Nb6 {[%emt 0:00:22]} 9. Bb3 {[%emt 0:00:01]} Bf5 {[%emt 0:00:46]} 10. Qe2 {[%emt 0:00:29]} d5 {[%emt 0:01:25]} 11. O-O-O {[%emt 0:01:39]} a5 {[%emt 0:00:11]} 12. a4 {[%emt 0:00:08]} Bb4 {[%emt 0:00:46]} 13. Nb5 {[%emt 0:02:26]} Ne8 {[%emt 0:00:49]} 14. c3 {[%emt 0:00:30]} Be7 {[%emt 0:00:10]} 15. c4 {[%emt 0:00:30]} c6 {[%emt 0:01:11]} 16. Nc3 {[%emt 0:00:08]} Bb4 {[%emt 0:00:14]} 17. c5 {[%emt 0:02:15]} Nd7 {[%emt 0:01:06]} 18. Na2 {[%emt 0:00:36]} b6 {[%emt 0:00:27]} 19. cxb6 {[%emt 0:01:10]} Qxb6 {[%emt 0:00:43]} 20. Bc2 {[%emt 0:00:43]} Nd6 {[%emt 0:00:56]} 21. Nxb4 {[%emt 0:00:14]} Qxb4 {[%emt 0:00:08]} 22. Bxd6 {[%emt 0:00:28]} Qxd6 {[%emt 0:00:03]} 23. Kb1 {[%emt 0:00:35]} Rfb8 {[%emt 0:00:55]} 24. g4 {[%emt 0:01:20]} Be6 {[%emt 0:00:09]} 25. f4 {[%emt 0:00:33]} f5 {[%emt 0:01:15]} 26. gxf5 {[%emt 0:00:17]} Bxf5 {[%emt 0:00:02]} 27. Qh5 {[%emt 0:00:18]} g6 {[%emt 0:00:57]} 28. Rhg1 {[%emt 0:00:28]} Kh8 {[%emt 0:01:22]} 29. Qe2 {[%emt 0:00:22]} Qa3 {[%emt 0:00:16]} 30. Bb3 {[%emt 0:00:20]} Rxb3 {[%emt 0:00:15]} 31. Nxb3 {[%emt 0:00:01]} Qxb3 {[%emt 0:00:02]} 32. Rc1 {[%emt 0:00:38]} Nb6 {[%emt 0:01:03]} 33. Rxc6 {[%emt 0:00:13]} Nc4 {[%emt 0:00:18]} 34. Re1 {[%emt 0:00:14]} Rb8 {[%emt 0:00:13]} 35. Rc5 {[%emt 0:00:19]} 0-1

[Event "GER-ch Rapid Women 2020"]
[Site "Plochingen"]
[Date "2020.09.19"]
[Round "2.4"]
[White "Osmanodja, Filiz"]
[Black "Roesler, Hannah Clara"]
[Result "1-0"]
[ECO "B77"]
[WhiteElo "2256"]
[BlackElo "1708"]
[Annotator "ChessBase"]
[PlyCount "59"]
[EventDate "2020.09.19"]
[EventType "swiss"]
[EventCountry "GER"]
[SourceTitle "playchess.com"]
[Source "ChessBase"]
[SourceQuality "1"]
[TimeControl "900+10"]

1. e4 {[%emt 0:00:00]} c5 {[%emt 0:00:00]} 2. Nc3 {[%emt 0:00:00]} Nc6 {[%emt 0:00:00]} 3. Nf3 {[%emt 0:00:00]} g6 {[%emt 0:00:02]} 4. d4 {[%emt 0:00:00]} cxd4 {[%emt 0:00:02]} 5. Nxd4 {[%emt 0:00:00]} Bg7 {[%emt 0:00:13]} 6. Be3 {[%emt 0:00:04]} Nf6 {[%emt 0:00:03]} 7. Bc4 {[%emt 0:00:02]} O-O {[%emt 0:00:05]} 8. Bb3 {[%emt 0:00:05]} d6 {[%emt 0:00:29]} 9. f3 {[%emt 0:00:04]} Bd7 {[%emt 0:00:25]} 10. Qd2 {[%emt 0:00:24]} Nxd4 {[%emt 0:00:21]} 11. Bxd4 {[%emt 0:00:07]} b5 {[%emt 0:00:05]} 12. O-O {[%emt 0:01:03]} a5 {[%emt 0:00:42]} 13. a4 {[%emt 0:00:14]} b4 {[%emt 0:01:26]} 14. Nd5 {[%emt 0:00:35]} Nxd5 {[%emt 0:00:27]} 15. exd5 {[%emt 0:01:42]} Rb8 {[%emt 0:01:51]} 16. Rfe1 {[%emt 0:00:26]} Re8 {[%emt 0:00:32]} 17. Bxg7 {[%emt 0:00:57]} Kxg7 {[%emt 0:00:02]} 18. Re4 {[%emt 0:00:07]} Qb6+ {[%emt 0:01:09]} 19. Kh1 {[%emt 0:00:10]} Bf5 {[%emt 0:00:58]} 20. Rh4 {[%emt 0:00:17]} Rh8 {[%emt 0:01:05]} 21. Re1 {[%emt 0:00:35]} Rb7 {[%emt 0:00:42]} 22. Bc4 {[%emt 0:06:15]} Rc7 {[%emt 0:02:52]} 23. b3 {[%emt 0:00:01]} f6 {[%emt 0:01:36]} 24. g4 {[%emt 0:01:11]} Bc8 {[%emt 0:00:33]} 25. Qh6+ {[%emt 0:01:15]} Kf7 {[%emt 0:00:33]} 26. Bd3 {[%emt 0:00:21]} f5 {[%emt 0:02:25]} 27. gxf5 {[%emt 0:00:23]} Qf2 {[%emt 0:00:36]} 28. fxg6+ {[%emt 0:00:22]} hxg6 {[%emt 0:00:07]} 29. Qxg6+ {[%emt 0:00:05]} Kf8 {[%emt 0:00:07]} 30. Rxh8# {[%emt 0:00:12]} 1-0